Cogmind - Beta 13 @@@ ROGUE MODE // 2024.04.01 @ 16:52:47 Player: Jennifer Result: Self-destructed Performance ------------- Evolutions (1) 500 Regions Visited (3) 600 Robots Destroyed (20) 100 Value Destroyed (536) 536 Prototype IDs (0) 0 Alien Tech Used (0) 0 Bonus (93) 93 TOTAL SCORE: 1829 Bonus ------- Follower Combat Kills 93 Cogmind --------- Core Integrity 261/400 Matter 300/300 Energy 263/265 System Corruption 0% Temperature Cool (4) Movement Hovering (48) Location -9/Materials Parts ------- > --- POWER (1) -------- Improved Ion Engine > --- PROPULSION (4) --- Airjet Airjet Airjet Airjet > --- UTILITY (2) ------ Small Storage Unit Hacking Suite > --- WEAPON (2) ------- Hammer > --- INVENTORY (8) ---- Light Nuclear Core Hover Unit Improved Hover Unit Structural Scanner Signal Interpreter Hacking Suite Peak State ------------ > --- POWER ------------ Improved Ion Engine > --- PROPULSION ------- Airjet Airjet Airjet Airjet > --- UTILITY ---------- Small Storage Unit Hacking Suite > --- WEAPON ----------- Assault Rifle Hammer > --- INVENTORY -------- Light Nuclear Core Hover Unit Improved Hover Unit Structural Scanner Signal Interpreter Hacking Suite [Rating: 21] Favorites ----------- Power Improved Ion Engine Engine Improved Ion Engine Propulsion Aluminum Leg Leg Aluminum Leg Wheel Wheel Hover Unit Airjet Flight Unit VTOL Module Utility Structural Scanner Device Structural Scanner Storage High-capacity Storage Unit Hackware Hacking Suite Weapon Hammer Ballistic Gun Assault Rifle Launcher Grenade Launcher Impact Weapon Hammer Build | -11 -10 -10 -9 ------- Run | Yrd Mat Min Mat Slots Evolved 2 | . . . 2 Power . | . . . . Propulsion 2 | . . . 2 Utility . | . . . . Weapon . | . . . . Parts Attached 40 | 6 17 1 16 Power 3 | 1 2 . . Engine 3 | 1 2 . . Core . | . . . . Reactor . | . . . . Propulsion 18 | 2 6 1 9 Treads . | . . . . Leg 7 | . 6 1 . Wheel 2 | 2 . . . Hover 5 | . . . 5 Flight 4 | . . . 4 Utility 6 | 1 3 . 2 Device 2 | . 2 . . Storage 3 | 1 1 . 1 Processor . | . . . . Hackware 1 | . . . 1 Protection . | . . . . Artifact . | . . . . Weapon 13 | 2 6 . 5 Energy Gun . | . . . . Energy Cannon . | . . . . Ballistic Gun 4 | 2 1 . 1 Ballistic Cannon . | . . . . Launcher 5 | . 3 . 2 Special Weapon . | . . . . Impact Weapon 4 | . 2 . 2 Slashing Weapon . | . . . . Piercing Weapon . | . . . . Special Melee Weapon . | . . . . Unidentified Prototypes . | . . . . Parts Lost 5 | . 2 . 3 Power . | . . . . Propulsion 2 | . 1 . 1 Utility . | . . . . Weapon 3 | . 1 . 2 Highest Loss Streak 1 | . 1 . 1 To Critical Strikes . | . . . . Average Slot Usage (%) 96 | . 95 100 92 Engine 13 | . 13 14 11 Leg 22 | . 26 28 . Hover 3 | . . . 19 Flight 3 | . . . 22 Device 11 | . 11 14 7 Storage 13 | . 14 14 11 Ballistic Gun 12 | . 13 14 9 Launcher 2 | . 4 . . Impact Weapon 9 | . 9 14 6 Naked Turns . | . . . . Heaviest Build 53 | 12 53 52 52 Greatest Support 32 | 26 26 20 32 Greatest Overweight (x) 16 | 1 16 2 3 Average Overweight (x) . | . 1 2 . Largest Inventory Capacity 20 | 8 20 20 20 Average Capacity 15 | 6 15 20 10 Most Carried 12 | 3 11 12 12 Average Carried 8 | 1 7 11 7 Final Capacity 20 | 8 20 20 8 Final Carried 12 | 3 10 12 6 Class Distribution -------------------- 97% | Mutant Dominant Class ---------------- Mutant | -10/Materials Mutant | -10/Mines Mutant | -9/Materials Resources | -11 -10 -10 -9 ----------- Run | Yrd Mat Min Mat Matter Collected 820 | 255 240 77 248 Remotely . | . . . . Salvage Created 659 | . 460 26 173 Parts 29 | . 22 . 7 Haulers Intercepted 1 | . . . 1 Recyclers Shooed . | . . . . Parts Field Recycled . | . . . . Retrieved Matter . | . . . . Parts Self-Destructed . | . . . . Prevented . | . . . . Kills | -11 -10 -10 -9 ------- Run | Yrd Mat Min Mat Combat Hostiles Destroyed 16 | . 11 . 5 Melee 1 | . 1 . . Guns 8 | . 7 . 1 AOE 7 | . 3 . 4 Classes Destroyed 6 | . 4 1 1 Worker 1 | . . 1 . Hauler 1 | . . . 1 Recycler 1 | . 1 . . Watcher 1 | . 1 . . Swarmer 3 | . 3 . . Grunt 13 | . 8 . 5 Best Kill Streak 5 | . 4 1 5 Combat Bots Only 5 | . 3 . 5 Max Kills in Single Turn 1 | . 1 1 1 Gunslinging . | . . . . Exploded 1 | . 1 . 1 Melee 1 | . 1 . . Uniques/NPCs Destroyed . | . . . . Combat | -11 -10 -10 -9 -------- Run | Yrd Mat Min Mat Hostile Shots Fired 134 | . 84 . 50 Missed 41 | . 28 . 13 Damage Taken 1155 | 3 641 . 511 Core 267 | . 128 . 139 Absorbed by Shields . | . . . . Core Remaining (%) 74 | 100 . 48 . Volleys Fired 58 | . 44 . 14 Largest 2 | . 2 . 1 Hottest 40 | . 40 . 30 Shots Fired 91 | . 77 . 14 Gun 78 | . 72 . 6 Cannon . | . . . . Launcher 13 | . 5 . 8 Special . | . . . . Kinetic 78 | . 72 . 6 Thermal . | . . . . Explosive 13 | . 5 . 8 Electromagnetic . | . . . . Robot Hit Streak 7 | . 7 . 7 Robot Miss Streak 2 | . 2 . 2 Penetration Max . | . . . . Secondary Targets 2 | . 2 . . Max Gunslinging Chain 1 | . 1 . . Shots Hit Robots 61 | . 45 1 15 Core Hits 34 | . 24 . 10 Critical Kills . | . . . . Critical Parts Destroyed 5 | . 4 . 1 Critical Strikes 5 | . 4 . 1 Destroy 2 | . 2 . . Smash 3 | . 2 . 1 Melee Attacks 22 | . 9 1 12 Impact 22 | . 9 1 12 Slashing . | . . . . Piercing . | . . . . Sneak Attacks 2 | . . 1 1 Combat Hostiles . | . . . . Follow-up Attacks . | . . . . Damage Inflicted 1394 | 6 733 72 583 Guns 384 | . 335 . 49 Cannons . | . . . . Explosions 688 | . 280 . 408 Melee 316 | . 118 72 126 Ramming 6 | 6 . . . Kinetic 384 | . 335 . 49 Thermal . | . . . . Explosive 688 | . 280 . 408 Electromagnetic . | . . . . Impact 316 | . 118 72 126 Slashing . | . . . . Piercing . | . . . . Highest Corruption 1 | . 1 1 . Average Corruption 1 | . 1 1 . Corruption Purged . | . . . . Corruption Blocked . | . . . . Effects 6 | . 5 1 . Message Errors 2 | . 1 1 . Matter Fused 2 | . 2 . . Heat Flow Errors 1 | . 1 . . Data Loss (minor) 1 | . 1 . . Overload Shots . | . . . . Overflow Damage 155 | . 90 32 33 Projectiles . | . . . . Explosions 27 | . 27 . . Melee 128 | . 63 32 33 Knockbacks 2 | . 1 1 . Impact 2 | . 1 1 . Kinetic . | . . . . Secondary . | . . . . Self-Inflicted Damage 36 | 3 15 . 18 Shots 2 | . 1 . 1 Rammed 1 | 1 . . . Targets Rammed 1 | 1 . . . Kicked . | . . . . Crushed . | . . . . Highest Temperature 176 | . 176 . 35 Average Temperature 17 | . 18 . 13 Received Heat Transfer 540 | . 291 . 249 Siege Activations . | . . . . Robots Corrupted . | . . . . Combat Hostiles . | . . . . Parts Fried 8 | . 6 . 2 Impact Corruptions 7 | . 3 2 2 Robots Melted . | . . . . Combat Hostiles . | . . . . Parts Melted . | . . . . Heat Transferred . | . . . . Parts Sabotaged . | . . . . Parts Stolen . | . . . . Parts Stripped . | . . . . Power Chain Reactions . | . . . . Alert | -11 -10 -10 -9 ------- Run | Yrd Mat Min Mat Peak Influence 252 | . 187 61 252 Initial . | . . . . Average 71 | . 80 22 120 Maximum Alert Level 1 | . . . 1 Low Security (%) 96 | 100 100 100 78 Level 1 3 | . . . 21 Level 2 . | . . . . Level 3 . | . . . . Level 4 . | . . . . Level 5 . | . . . . High Security . | . . . . Max Security . | . . . . Squads Dispatched 6 | . 4 . 2 Investigation 4 | . 2 . 2 Extermination . | . . . . Reinforcement 2 | . 2 . . Assault . | . . . . Garrison . | . . . . Intercept . | . . . . Searches Triggered . | . . . . Construction Impeded . | . . . . Haulers Reinforced . | . . . . Active Scanning Responses . | . . . . Cargo Convoy Interrupts . | . . . . Stealth | -11 -10 -10 -9 --------- Run | Yrd Mat Min Mat Distress Signals 1 | . . . 1 Communications Jammed . | . . . . Distress Signals . | . . . . Times Spotted 41 | . 25 2 14 Peak Tracking Total 8 | . 3 2 8 Tactical Retreats 2 | . 1 . 1 Traps | -11 -10 -10 -9 ------- Run | Yrd Mat Min Mat Traps Triggered 2 | . 2 . . Indirectly . | . . . . Trap Hack Attempts . | . . . . Triggered . | . . . . Disarmed . | . . . . Reprogrammed . | . . . . Reused . | . . . . Traps Extracted . | . . . . Installed . | . . . . Triggered . | . . . . Machines | -11 -10 -10 -9 ---------- Run | Yrd Mat Min Mat Machines Disabled . | . . . . Max in Single Turn . | . . . . Machines Repaired . | . . . . Machines Dismantled . | . . . . Machines Sabotaged . | . . . . Overloaded Fab Kills . | . . . . Hacking | -11 -10 -10 -9 --------- Run | Yrd Mat Min Mat Machines Accessed 8 | . 6 . 2 Terminals 7 | . 5 . 2 Fabricators . | . . . . Repair Stations . | . . . . Recycling Units 1 | . 1 . . Scanalyzers . | . . . . Garrison Access . | . . . . Total Hacks 25 | . 16 . 9 Successful 9 | . 5 . 4 Failed 16 | . 11 . 5 Catastrophic 3 | . 3 . . Database Lockouts . | . . . . Manual 26 | . 17 . 9 Terminals 24 | . 15 . 9 Fabricators . | . . . . Repair Stations . | . . . . Recycling Units 1 | . 1 . . Scanalyzers . | . . . . Garrison Access . | . . . . Terminal Hacks 8 | . 4 . 4 Part Schematic 1 | . 1 . . Branch Access Points 2 | . 1 . 1 Alert Level 2 | . 1 . 1 Transport Status 1 | . . . 1 Hauler Manifests 2 | . 1 . 1 Fabricator Hacks . | . . . . Repair Station Hacks . | . . . . Recycling Unit Hacks 1 | . 1 . . Report Inventory 1 | . 1 . . Scanalyzer . | . . . . Garrison Access Hacks . | . . . . Unauthorized Hacks . | . . . . Terminals . | . . . . Fabricators . | . . . . Repair Stations . | . . . . Recycling Units . | . . . . Scanalyzers . | . . . . Garrison Access . | . . . . Data Cores Recovered . | . . . . Used . | . . . . Hacking Detections 8 | . 6 . 2 Full Trace Events 6 | . 4 . 2 Feedback Events 1 | . 1 . . Corruption 1 | . 1 . . Feedback Blocked . | . . . . Robot Schematics Acquired . | . . . . Robots Built . | . . . . Authchips . | . . . . Time . | . . . . Total Robot Build Rating . | . . . . Part Schematics Acquired 1 | . 1 . . Parts Built . | . . . . Authchips . | . . . . Time . | . . . . Total Part Build Rating . | . . . . Parts Repaired . | . . . . Time . | . . . . Parts Recycled . | . . . . Recycled Matter . | . . . . Retrieved Matter . | . . . . Retrieved Components . | . . . . Parts Scanalyzed . | . . . . Part Schematics Acquired . | . . . . Parts Damaged . | . . . . Bothacking | -11 -10 -10 -9 ------------ Run | Yrd Mat Min Mat Used RIF Installer . | . . . . Robots Hacked . | . . . . Non-combat . | . . . . Combat . | . . . . Robot Hacks Applied . | . . . . Relay Couplers Released . | . . . . Fabnet Peak Effective % . | . . . . Robots Rewired . | . . . . Allies Hacked . | . . . . Hacks Repelled . | . . . . Allies | -11 -10 -10 -9 -------- Run | Yrd Mat Min Mat Total Allies 2 | . . 2 . Largest Group 2 | . . 2 2 Highest-Rated Group 47 | . . 47 47 Highest-Rated Ally 31 | . . 31 31 Total Orders . | . . . . Ally Attacks 14 | . . 6 8 Total Damage 188 | . . 62 126 Kills 4 | . . 2 2 Allies Corrupted . | . . . . Allies Melted . | . . . . Intel | -11 -10 -10 -9 ------- Run | Yrd Mat Min Mat Robot Analysis Total . | . . . . Derelict Logs Recovered 1 | . . 1 . Drone Launches . | . . . . Drone Recoveries . | . . . . Exploration | -11 -10 -10 -9 ------------- Run | Yrd Mat Min Mat Turns Passed 2203 | 62 1296 500 345 Spaces Moved 1235 | 58 591 188 398 Core 5 | 4 1 . . Treads . | . . . . Legs 724 | . 536 188 . Wheels 108 | 54 54 . . Hover 188 | . . . 188 Flight 210 | . . . 210 Fastest Speed 26 | 50 90 260 26 Average Speed 150 | 84 186 260 54 Slowest Speed 850 | 95 850 260 266 Overloaded Moves . | . . . . Propulsion Burnouts . | . . . . Robots Hopped 2 | . . . 2 Cave-ins Triggered . | . . . . Exploration Rate (%) 38 | 4 79 48 23 Regions Visited 3 Branch Regions 1 Pre-discovered Areas . | . . . . Known Exits Taken 1 | . 1 . . Unknown Exits Taken 2 | 1 . 1 . Scrap Searched . | . . . . Spaces Dug 5 | . 1 . 4 Terrain Destroyed 101 | . 27 . 74 Melee 5 | . 1 . 4 Projectile . | . . . . AOE 96 | . 26 . 70 Terrain Rammed . | . . . . Walls Destroyed . | . . . . Machines Disabled . | . . . . Actions | -11 -10 -10 -9 --------- Run | Yrd Mat Min Mat Total 1460 | 67 704 198 491 Wait 74 | . 30 8 36 Move 1228 | 57 590 187 394 Hop 2 | . . . 2 Pick Up 17 | 3 8 1 5 Fast Attach 17 | 6 7 . 4 Attach 15 | . 5 . 10 Detach 9 | . 3 . 6 Swap 8 | . 5 1 2 Drop 9 | . 3 . 6 Fire 58 | . 44 . 14 Melee 22 | . 9 1 12 Ram 1 | 1 . . . Kick . | . . . . Crush . | . . . . Escape Stasis . | . . . . Rewire . | . . . . Trap . | . . . . Miscellaneous . | . . . . Route ------- -11/Scrapyard -10/Materials (discovered 4 exits: *Mat x2 / *Min x2) -10/Mines -9/Materials (discovered 2 exits: Mat / Min) History --------- Turn | Location | Event 9 | -11/Scrapyard | Discovered new exit (range 16) 63 | -11/Scrapyard | Entered Materials 63 | -10/Materials | Discovered new exit (range 7) 315 | -10/Materials | Build established: Mutant 453 | -10/Materials | Discovered new exit (range 7) 546 | -10/Materials | Core integrity fell below 50% 717 | -10/Materials | Discovered new exit (range 16) 801 | -10/Materials | Identified exit to Mines 1041 | -10/Materials | Discovered new exit (range 10) 1359 | -10/Materials | Entered Mines 1812 | -10/Mines | Discovered new exit (range 7) 1823 | -10/Mines | Learned 2 Materials zone layouts 1844 | -10/Mines | Assembled infested the area 1849 | -10/Mines | Assisted by a Guerilla fighting off Assembled 1859 | -10/Mines | Entered Materials 1859 | -9/Materials | Accompanied by 2 allies 1859 | -9/Materials | Evolved 2 slots: Propulsion x2 1860 | -9/Materials | Identified exit to Materials 1860 | -9/Materials | Identified exit to Mines 1864 | -9/Materials | Led the pair of lost Derelicts to an unsafe place 2204 | -9/Materials | Self-destructed Last Messages --------------- 02105_ Destroyed Weight Redist. System. 02105_ A-02 Transporter system corrupted by crushing effect. 02106_ A-02 Transporter system terminally corrupted. 02106_ Lgt. Treads fried. 02106_ Ion Engine fried. 02110_ Acquired 48 matter. 02112_ Acquired 42 matter. 02169_ Acquired 136 matter. 02182_ Assault Rifle destroyed. 02191_ U-05 Engineer lays Concrete. 02191_ T-07 Excavator is excavating. 02196_ K-01 Serf collects debris. 02198_ Connecting with Terminal... >>Alert(Check) Current Alert Level: 1-F 02198_ ALERT: Suspicious activity at Terminal M008. Dispatching Investigation squad. 02203_ W-16 Scout sends out distress signal. Map ----- +----------------------------------------------------+ | #?# # ""???????????????????????????????????????? | | #?# # ""???????????????????????????????????????? | | #?# # ""???????????????????????????????????????? | | #?# # ""???????????????????????????????????????? | | ### # ???????????????????????????????????????? | | # ####???????????????????????????????????????? | | + #?# ???????????????????????????????????????? | | # ####???????????????????????????????????????? | | # # ???????????????????????????????????????? | | ### # ???????????????????????????????????????? | | # # ???????????????????????????????????????? | | " # # ???????????????????????????????????????? | | " # ##+#??????? ?????????????????????????????? | | " + ?????? ?????????????????????????????? | | " # ?????? ?????????????????????????????? | | " # ?????? #????????????????????????????? | | + "??????" #????????????????????????????? | | ### "??? """ ####?????????????????????????? | | ###?# ""?? """ !??????????????????????????? | | ????# ? !??????????????????????????? | | ????# ???????????????????????????? | | ????# """ """ ???????????????????????????? | | ##### """ """ ????????????????????????????? | | """ """ ???????????????????## ??????? | | ################ ???## ?????? | | w @ t ????? | | ####### ?????# g ????? | | #?## ?????# ???? | | " #?# ?????# #####################? ##???? | | "" #?# ?????# #????????????????????? ##???? | | "" #?# ?????# #??????????????????? # ####?? | | "" #?# > ????## #####??????????????? + ####?? | | ????????? ????# # #??????????????? # ?? | | ???????? ???# ## #??????????????? # ???? | | ??????? ???# T #???????????????## ???? | | ??????? #???# ## #???????????????"" ##???? | | ??????? #???# ## #???????????????T # ???? | | ??????? #???######## ##?????????????### # ???? | | ??????? #?????????## ##?????????????### # ???? | | ??????# ##????????## ##?????????????##T # ???? | | ?????? #????????## ##???????######### # ???? | | ?????? #????????## ##???????######### ##???? | | ?????? #????????## ###??###### !!!# # ???? | | ?????? ??????###### # #######= !!!!# # ???? | | ????## ????????###### # # # == # # ???? | | ????#"############ ####### + ???? | | ????# # %% # ???? | | ????# """"" # ########## %! # ???? | | ????# """"""""" # # # ##???? | | ???## """ """ # # # ## ####### [% ###???? | +----------------------------------------------------+ Best States ------------- Heat Dissipation 28 Energy Generation 12 Energy Capacity 265 Matter Stores 300 Matter Capacity 300 Sight Range 16 Terrain Scan Density 10 Evasion (%) 64 Offensive Hacking 10 Item Schematics ----------------- Assault Rifle | -10/Materials | Hacked Robot Schematics ------------------ None Fabricated ------------ Nothing Alien Tech Used ----------------- None Achievements -------------- None Challenges ------------ None Game ------ Seed LobotomyLinkedCanceller Manual? 0 Play Time 00:34:10 Cumulative 21.1 hours Start 2024.03.31 @ 14:47:58 End 2024.04.01 @ 16:52:47 Sessions 3 Manual Loads 0 Difficulty Rogue Special Mode None Game No. 36 Rogue 36 Adventurer 0 Explorer 0 Win Type - Total 0 Types 0/0/0/0/0/0/0/0/0 Lore% 14 Gallery% 20 Achievement% 19 Wizard Run 0 Options --------- Layout 1 ASCII 0 Keyboard 1 Movement Vi Keybinds 0 Fullscreen 0 Font 20/SmallcapsGlow Map View 50x35 Zoom Use 0% Tactical HUD 1 Map Filters NONE Filters NONE Steam 1 RUN: ef8e9847-c27f-49a7-871a-136344a879f3